bitfinex/quotes_ETHUSD_20220215
["timestamp","ask_amount","ask_price","bid_price","bid_amount"]
[1644942681171,0.00394844,3118.6,3117.8,0.80152]
[1644942681370,0.00394844,3118.6,3117.9,3.78176218]
[1644942681568,0.00394844,3118.6,3118.0,0.07779746]
[1644942681768,0.00394844,3118.6,3118.1,0.64420448]
[1644942682019,0.00394844,3118.6,3118.2,0.07779746]
[1644942682217,0.00394844,3118.6,3118.3,1.10152]
[1644942682418,0.00394844,3118.8,3118.3,0.3]
[1644942682621,0.80155,3118.7,3118.4,0.8015438]
[1644942682818,0.80155,3118.7,3118.4,1.1015438]
[1644942683023,0.80155,3118.7,3118.5,0.3]
[1644942683418,0.80155,3118.7,3118.5,1.10156]
[1644942683818,0.80155,3118.7,3118.5,1.9031108]
[1644942685866,0.80155,3118.7,3118.5,0.14566396]
[1644942686263,0.80815063,3118.8,3118.5,0.94721476]
[1644942686862,0.80547844,3118.8,3118.5,0.94721476]
[1644942687263,0.80815063,3118.8,3118.5,1.74873476]
[1644942687564,0.80815063,3118.8,3118.6,1.6030217]
[1644942688167,0.80547844,3118.8,3118.6,1.6030217]
[1644942689913,0.80547844,3118.8,3118.6,1.9030217]
[1644942690314,0.00394844,3118.8,3118.6,1.9030217]
[1644942690617,0.80149,3118.9,3118.7,0.80152]
[1644942690821,0.00394844,3118.8,3118.7,0.80152]
[1644942691214,0.00394844,3118.8,3118.6,1.1015117]
[1644942691816,0.00394844,3118.8,3118.6,1.9030617]
[1644942692216,0.00394844,3118.8,3118.6,1.1015117]
[1644942693117,0.00394844,3118.8,3118.6,0.8015117]
[1644942693366,1.24418312,3118.7,3118.6,0.8015117]
[1644942694260,0.00394844,3118.8,3118.6,1.6030717]
[1644942694463,0.00662063,3118.8,3118.6,0.80156]
[1644942694660,0.00662063,3118.8,3118.6,0.8015343]
[1644942694661,0.80155,3118.8,3118.6,0.8015343]
[1644942694961,0.80155,3118.8,3118.6,1.1015343]
[1644942695160,0.80155,3118.8,3118.6,0.3]
[1644942695758,0.80155,3118.8,3118.3,1.40161]
[1644942695965,1.24534652,3118.7,3118.3,1.40161]
[1644942696261,2.04696652,3118.7,3118.4,0.8016216]
[1644942696460,1.24534652,3118.6,3118.4,1.6032316]
[1644942696664,1.24534652,3118.6,3118.5,0.3]
[1644942696861,1.24534652,3118.6,3117.9,2.08069531]
[1644942697123,1.24534652,3118.6,3117.5,2.7983]
[1644942697318,0.80185,3118.4,3117.6,0.10045648]
[1644942697518,1.24536234,3118.3,3117.6,0.10045648]
[1644942697719,2.84901234,3118.3,3117.6,0.90225648]
[1644942697921,1.14536234,3118.2,3117.7,0.90227738]
[1644942698123,1.60359,3118.3,3117.7,0.8018209]
[1644942698523,0.8018,3118.1,3117.7,0.8018209]
[1644942698920,0.8018,3118.1,3117.7,1.19610586]
[1644942699123,0.8018,3118.1,3117.8,0.80172]
[1644942701368,0.8018,3118.1,3117.8,1.6034373]
[1644942701765,0.8018,3118.1,3117.9,0.80172]
[1644942701966,0.8018,3118.1,3117.7,0.8018209]
[1644942702165,0.8018,3118.1,3117.7,1.1018209]
[1644942702364,0.8018,3118.1,3117.8,0.8017756]
[1644942702567,0.8018,3118.1,3117.7,0.3]
[1644942702770,0.8018,3118.1,3117.5,0.8018]
[1644942702973,0.8018,3118.1,3117.3,2.2036]
[1644942703171,0.8018,3118.1,3117.3,0.3]
[1644942703368,0.80186,3118.0,3117.3,0.3]
[1644942703569,0.80184,3117.9,3117.3,0.3]
[1644942703775,0.80184,3117.9,3117.4,0.80183]
[1644942704170,0.80184,3117.9,3117.4,1.10183]
[1644942704373,0.80184,3117.9,3117.4,0.3]
[1644942704616,4.25425276,3117.9,3117.3,0.3]
[1644942704815,0.80184,3117.9,3117.1,0.3]
[1644942705116,0.80184,3117.9,3116.9,0.6071733]
[1644942705117,0.80184,3117.9,3116.9,0.9071733]
[1644942705314,1.60376,3117.9,3117.1,0.8019454]
[1644942705614,1.60376,3117.9,3117.0,0.80192]
[1644942706416,1.60386,3117.8,3116.9,1.10195]
[1644942706614,0.80195,3117.6,3116.9,1.10195]
[1644942706827,0.80195,3117.6,3116.9,1.54943655]
[1644942707215,0.80195,3117.6,3116.9,0.3]
[1644942707415,0.68074589,3117.6,3116.9,1.7091556]
[1644942707615,0.80203,3117.5,3116.9,0.3]
[1644942707814,1.60407,3117.5,3116.8,0.3]
[1644942708016,1.60407,3117.5,3116.7,0.9071733]
[1644942708267,1.60407,3117.5,3116.6,0.6071733]
[1644942708268,23.07131993,3117.4,3116.6,0.6071733]
[1644942708468,23.87337993,3117.4,3116.5,0.8021005]
[1644942708668,1.0,3117.3,3116.4,0.3]
[1644942708867,1.0,3117.3,3116.5,0.3]
[1644942708868,5.07934,3117.2,3116.5,0.3]
[1644942709071,5.07934,3117.2,3116.4,0.3]
[1644942709269,1.60426,3117.2,3116.4,0.3]
[1644942709468,1.60426,3117.2,3116.4,0.9071733]
[1644942709667,1.60426,3117.2,3116.4,1.2071733]
[1644942709867,1.60426,3117.2,3116.5,0.6071733]
[1644942710067,0.80213,3117.1,3116.5,0.6071733]
[1644942710268,4.24386994,3117.1,3116.4,0.6071733]
[1644942710471,1.10200242,3116.7,3116.3,0.3]
[1644942710668,1.60427,3116.8,3116.2,1.2179959]
[1644942710867,1.60427,3116.8,3116.2,0.0108226]
[1644942711066,1.60427,3116.8,3116.1,0.6071733]
[1644942711268,1.60427,3116.8,3116.3,0.8021125]
[1644942712114,0.80214,3116.6,3116.4,0.3]
[1644942712314,1.95252635,3116.6,3116.4,0.3]
[1644942712517,0.80214,3116.6,3116.1,1.2071733]
[1644942713014,0.80214,3116.6,3116.1,0.3]
[1644942713616,1.688084,3116.6,3115.9,0.6071733]
[1644942713817,1.688084,3116.6,3115.7,0.617997]
[1644942714014,1.688084,3116.6,3115.7,0.0108237]
[1644942714413,1.688084,3116.6,3115.7,0.617997]
[1644942714615,8.14587762,3116.6,3115.7,0.6071733]
[1644942714813,8.14587762,3116.6,3115.8,0.6071733]
[1644942715016,8.14587762,3116.6,3115.5,0.61799749]
[1644942715017,0.8024,3116.4,3115.5,0.61799749]
[1644942715215,0.80239,3116.2,3115.5,0.61799749]
[1644942715615,0.80239,3116.2,3115.5,0.01082419]
[1644942715870,0.80239,3116.2,3115.3,1.7095482]
[1644942716065,0.8024,3116.1,3115.4,0.6071733]
[1644942716271,0.8024,3116.1,3115.5,0.6071733]
[1644942716463,0.8024,3116.1,3115.6,0.6071733]
[1644942716664,0.8024,3116.1,3115.5,0.6071733]
[1644942717264,0.8024,3116.1,3115.3,1.7095387]
[1644942717463,0.8024,3116.1,3115.3,0.6071733]
[1644942717665,0.8024,3116.1,3115.2,0.91799835]
[1644942718064,0.8024,3116.1,3115.3,0.09564835]
[1644942718464,0.8024,3116.1,3115.3,0.89802445]
[1644942718667,0.8024,3116.1,3115.4,0.09564835]
[1644942718865,0.7524,3116.1,3115.4,0.09564835]
[1644942719064,0.7524,3116.1,3115.4,0.70282165]
[1644942719266,0.7524,3116.1,3115.4,1.00282165]
[1644942719525,0.7524,3116.1,3115.5,0.09564835]
[1644942719716,19.4724,3116.1,3115.6,0.09564835]
[1644942719916,0.7524,3116.1,3115.7,0.09644895]
[1644942720117,0.7524,3116.1,3115.8,0.09564835]
[1644942720317,0.87484881,3116.0,3115.9,0.09564835]
[1644942720716,0.87484881,3116.0,3115.7,0.0008006]
[1644942721117,0.7524,3116.1,3115.4,0.3]
[1644942721318,0.80231,3116.0,3115.4,0.6]
[1644942721616,0.80231,3116.0,3115.4,0.6071733]
[1644942721817,0.80231,3116.0,3115.5,0.80226]
[1644942722026,4.63572,3116.6,3115.7,0.6071733]
[1644942722218,3.83355,3116.6,3115.9,0.6071733]
[1644942722419,0.80205,3116.6,3116.0,0.8020969]
[1644942722618,0.80205,3116.6,3116.1,0.3]
[1644942722819,0.80205,3116.6,3116.2,0.80209]
[1644942723120,1.60411,3117.2,3116.2,0.3]
[1644942723376,0.80195,3117.1,3116.1,0.3]
[1644942723573,0.80195,3117.1,3115.8,5.49296]
[1644942723767,0.80195,3117.1,3115.8,5.79296]
[1644942723969,5.05463779,3117.4,3116.2,0.8021164]
[1644942723970,1.06891596,3116.8,3116.2,0.8021164]
[1644942724169,1.60411,3116.9,3116.2,0.8021164]
[1644942724368,0.802,3117.1,3116.2,1.6]
[1644942724767,0.802,3117.1,3116.2,0.3]
[1644942724967,0.802,3117.1,3116.2,0.9071733]
[1644942725568,0.802,3117.1,3116.5,0.8020072]
[1644942725772,6.36334,3117.5,3116.6,0.3]
[1644942725969,4.7595,3117.5,3116.6,0.3]
[1644942726470,5.68801769,3117.5,3116.5,0.3]
[1644942726670,5.68801769,3117.5,3116.3,0.9071733]
[1644942727024,0.80193,3117.2,3116.9,0.3]
[1644942727420,0.69008366,3117.2,3116.7,0.3]
[1644942727820,0.69008366,3117.2,3116.6,1.6039392]
[1644942728022,0.69008366,3117.2,3116.2,0.81221852]
[1644942728822,1.1922416,3117.0,3116.2,0.81221852]
[1644942729024,0.80203,3116.9,3116.2,1.90417]
[1644942729222,0.80203,3116.9,3116.4,0.80203]
[1644942729424,0.80203,3116.9,3116.5,0.8020931]
[1644942729726,0.80203,3116.9,3116.5,1.4020931]
[1644942729921,0.80203,3116.9,3116.6,0.80197]
[1644942730123,4.7595,3117.5,3116.8,0.80192]
[1644942730124,0.80193,3117.2,3116.8,0.80192]
[1644942730623,0.80193,3117.2,3116.8,1.40192]
[1644942730874,0.80193,3117.2,3116.8,2.2038594]
[1644942731369,0.80193,3117.2,3116.9,0.80193]
[1644942732376,3.3132,3117.8,3116.9,0.80193]
[1644942732572,3.3132,3117.8,3117.3,0.80169]
[1644942732771,6.8020287,3118.2,3117.3,1.10169]
[1644942732772,6.7981,3118.2,3117.3,1.10169]
[1644942733169,6.7981,3118.2,3117.3,0.6]
[1644942733170,1.2089,3118.2,3117.3,0.6]
[1644942733370,1.09901811,3117.9,3117.3,2.4051588]
[1644942733570,1.90081811,3117.9,3117.3,2.4051588]
[1644942733769,0.8018,3117.9,3117.5,0.80176]
[1644942734618,0.8018,3117.9,3117.4,1.1016994]
[1644942735023,0.8018,3117.9,3117.4,0.8016994]
[1644942735718,0.8018,3117.9,3117.5,0.3]
[1644942735919,0.96321983,3117.8,3117.5,0.3]
[1644942736118,0.96321983,3117.8,3117.5,1.1018194]
[1644942736418,0.96321983,3117.8,3117.4,0.3]
[1644942736817,0.96321983,3117.8,3117.3,0.80182]
[1644942737017,0.96321983,3117.8,3117.3,1.40182]
[1644942737219,0.96321983,3117.8,3117.3,0.8018707]
[1644942737819,1.60374,3117.7,3117.3,0.8018707]
[1644942738871,1.60374,3117.7,3117.3,0.3]
[1644942739068,1.60374,3117.7,3117.1,1.6037253]
[1644942739069,1.60374,3117.7,3117.1,2.7056053]
[1644942739369,1.60374,3117.7,3117.1,0.6]
[1644942739569,1.60374,3117.7,3117.1,0.3]
[1644942739769,1.60374,3117.7,3117.2,0.3]
[1644942740369,1.60374,3117.7,3116.9,2.2038368]
[1644942740569,1.50374,3117.7,3116.9,2.2038368]
[1644942741170,1.50374,3117.7,3117.0,0.09253753]
[1644942741771,1.50374,3117.7,3117.1,0.801921]
[1644942742019,1.50374,3117.7,3117.2,0.09253753]
[1644942742318,1.50374,3117.7,3117.3,0.09253753]
[1644942743719,18.72,3117.6,3117.3,0.09253753]
[1644942743921,18.72,3117.6,3116.3,0.58308798]
[1644942743922,28.47546576,3117.5,3116.3,0.58308798]
[1644942744120,28.47546576,3117.5,3116.4,0.09272846]
[1644942744121,19.97546576,3117.4,3116.4,0.09272846]
[1644942744318,19.97546576,3117.4,3116.5,0.09272846]
[1644942744319,0.80224,3117.2,3116.5,0.09272846]
[1644942744519,1.25546576,3117.1,3116.6,0.09272846]
[1644942744719,19.104,3117.3,3116.7,0.09272846]
[1644942744920,19.104,3117.3,3116.1,0.6071733]
[1644942744921,1.0,3117.2,3116.8,0.09272846]
[1644942745118,1.0,3117.2,3116.9,0.09272846]
[1644942745323,0.8021,3117.2,3117.0,0.09694265]
[1644942745518,0.80219,3117.1,3116.2,0.6172895]
[1644942745774,0.80219,3117.1,3116.3,0.09693468]
[1644942746172,1.18818716,3116.9,3116.4,0.09693468]
[1644942746372,1.18818716,3116.9,3116.2,0.6071733]
[1644942746373,2.79255716,3116.9,3116.5,0.09693468]
[1644942746572,0.80222,3116.8,3116.6,0.09693468]
[1644942746771,2.79261716,3116.9,3116.7,0.09693468]
[1644942746973,6.00166716,3116.9,3116.8,0.09693468]
[1644942747173,6.00166716,3116.9,3116.0,0.3]
[1644942747373,3.46810618,3116.8,3116.1,0.09703723]
[1644942747572,0.80227,3116.6,3116.2,0.09703723]
[1644942747772,0.30663296,3116.6,3116.2,0.09703723]
[1644942748475,0.30663296,3116.6,3116.3,0.09703723]
[1644942748675,0.30663296,3116.6,3116.4,0.09703723]
[1644942748874,0.30663296,3116.6,3116.5,0.09703723]
[1644942749719,0.30663296,3116.6,3116.5,0.08777918]
[1644942749923,0.30663296,3116.6,3116.0,0.69495248]
[1644942750122,0.30663296,3116.6,3116.1,0.08777918]
[1644942750323,0.30663296,3116.6,3116.3,0.6071733]
[1644942750529,0.30663296,3116.6,3116.4,0.08777918]
[1644942750720,0.30663296,3116.6,3116.5,0.08777918]
[1644942754973,0.30663296,3116.6,3116.3,0.08777918]
[1644942755375,0.30663296,3116.6,3116.4,0.08777918]
[1644942755584,0.30663296,3116.6,3116.5,0.08777918]
[1644942756475,0.30663296,3116.6,3116.0,0.6071733]
[1644942756880,1.10880296,3116.6,3116.0,0.9071733]
[1644942757121,0.80218,3116.5,3116.1,0.08777918]
[1644942757318,0.80218,3116.5,3116.1,0.69495248]
[1644942757820,0.80218,3116.5,3116.1,1.49710248]
[1644942758018,0.80218,3116.5,3116.2,0.08777918]
[1644942758224,1.60438,3116.5,3116.2,0.08777918]
[1644942758422,1.60438,3116.5,3116.3,0.08777918]
[1644942758622,1.60438,3116.5,3116.4,0.08777918]
[1644942758821,1.60438,3116.5,3116.1,0.69495248]
[1644942759024,1.60438,3116.5,3116.2,0.08777918]
[1644942759222,1.60438,3116.5,3116.3,0.08777918]
[1644942759423,0.80218,3116.5,3116.4,0.08777918]
[1644942759925,0.30663296,3116.6,3116.2,0.08777918]
[1644942760123,0.30663296,3116.6,3116.3,0.08777918]
[1644942760326,0.30663296,3116.6,3116.4,0.08777918]
[1644942760526,0.30663296,3116.6,3116.2,0.6071733]
[1644942760777,0.30663296,3116.6,3116.2,0.69495248]
[1644942760969,0.30663296,3116.6,3116.3,0.08777918]
[1644942761173,0.30663296,3116.6,3116.4,0.08777918]
[1644942761372,0.30663296,3116.6,3116.5,0.08777918]
[1644942763481,0.80208,3116.8,3116.5,3.95800557]
[1644942763674,0.80208,3116.8,3116.6,0.69495248]
[1644942763873,0.80208,3116.8,3116.6,1.49692248]
[1644942764073,1.6041,3116.9,3116.7,0.08777918]
[1644942764516,1.6041,3116.9,3116.8,0.08777918]
[1644942764720,0.80199,3117.1,3116.8,0.08777918]
[1644942764917,0.80199,3117.1,3116.9,0.08777918]
[1644942765118,0.80199,3117.1,3117.0,0.08777918]
[1644942765318,1.604,3117.1,3116.7,0.802]
[1644942765519,1.604,3117.1,3116.8,0.08777918]
[1644942765520,1.19127289,3116.9,3116.8,0.08777918]
[1644942766922,1.84339289,3116.9,3116.5,0.08777918]
[1644942767321,1.84339289,3116.9,3116.5,0.88985958]
[1644942767522,2.64551289,3116.9,3116.6,0.08777918]
[1644942767721,2.30674956,3116.9,3116.6,0.08777918]
[1644942768570,1.84339289,3116.9,3116.6,0.08777918]
[1644942769170,1.84339289,3116.9,3116.6,0.88982918]
[1644942769373,1.84339289,3116.9,3116.7,0.08777918]
[1644942769572,1.84339289,3116.9,3116.5,0.08777918]
[1644942769776,1.84339289,3116.9,3116.1,0.01084284]
[1644942769777,4.68332924,3116.8,3116.1,0.01084284]
[1644942769972,0.80231,3116.6,3116.1,0.6071733]
[1644942770174,3.75977963,3116.5,3116.1,0.01084297]
[1644942770374,0.86423652,3116.3,3116.1,0.01084297]
[1644942770878,1.66647652,3116.3,3116.1,0.61801627]
[1644942771276,1.66647652,3116.3,3116.1,0.6071733]
[1644942771674,1.66647652,3116.3,3116.0,1.4093633]
[1644942772120,0.86423652,3116.3,3116.0,1.4093633]
[1644942772321,0.80221,3116.2,3116.0,1.4093633]
[1644942773724,0.80221,3116.2,3116.0,0.6071733]
[1644942774324,0.80221,3116.2,3115.9,2.211624]
[1644942774325,1.60444,3116.2,3115.9,2.211624]
[1644942774526,0.80221,3116.2,3116.0,0.6071733]
[1644942774723,0.80221,3116.2,3115.9,2.211624]
[1644942774924,0.80221,3116.2,3116.0,0.8022]
[1644942775123,0.80221,3116.2,3116.0,1.4093733]
[1644942775768,0.80221,3116.2,3116.1,0.6071733]
[1644942775968,0.80221,3116.2,3116.0,1.4093733]
[1644942776169,0.80221,3116.2,3116.1,0.6071733]
[1644942776573,0.80221,3116.2,3116.0,1.4093733]
[1644942776769,0.80221,3116.2,3116.0,0.6071733]
[1644942777770,0.80221,3116.2,3116.1,0.6071733]
[1644942777972,1.60444,3116.2,3116.1,0.6071733]
[1644942779620,1.60444,3116.2,3116.0,0.6071733]
[1644942780220,1.60444,3116.2,3116.1,0.6071733]
[1644942781021,1.60444,3116.2,3116.0,0.6071733]
[1644942781620,1.60444,3116.2,3116.1,0.6071733]
[1644942783023,1.60444,3116.2,3115.8,0.6071733]
[1644942783296,0.80237,3116.0,3115.7,0.6071733]
[1644942783694,0.80237,3116.0,3115.8,0.6071733]
[1644942784096,0.80237,3116.0,3115.7,0.81657554]
[1644942784295,1.60474,3116.0,3115.7,0.81657554]
[1644942784501,0.80228,3115.9,3115.7,0.81657554]
[1644942784694,0.80228,3115.9,3115.7,0.3]
[1644942784895,0.80228,3115.9,3115.7,0.00438049]
[1644942785094,0.80228,3115.9,3115.7,0.82095603]
[1644942785297,0.80228,3115.9,3115.8,0.81657554]
[1644942785598,3.406846,3116.7,3115.7,1.10663049]
[1644942785599,4.87507,3116.6,3115.7,1.50775625]
[1644942785797,4.87507,3116.6,3116.4,0.61323728]
[1644942786001,0.25,3116.9,3116.5,0.61323728]
[1644942786197,9.64467,3117.4,3116.6,0.61323728]
[1644942786401,4.5606,3117.4,3116.7,0.61323728]
[1644942786598,1.60406,3116.9,3116.6,0.61323728]
[1644942787020,1.60406,3116.9,3116.5,0.61323728]
[1644942787418,1.60406,3116.9,3116.7,0.61323728]
[1644942787620,1.35235503,3116.9,3116.8,0.61323728]
[1644942788120,0.8022,3116.8,3116.5,0.61323728]
[1644942788320,0.80209,3116.7,3116.5,0.61323728]
[1644942789123,0.80209,3116.7,3116.5,0.3]
[1644942789320,0.80213,3116.6,3116.4,1.1176497]
[1644942789721,0.80213,3116.6,3116.4,1.9042088]
[1644942789920,0.80213,3116.6,3116.5,0.06834433]
[1644942791373,0.80213,3116.6,3116.3,1.18599403]
[1644942791569,0.80213,3116.6,3116.4,0.06834433]
[1644942792073,0.80213,3116.6,3116.5,0.61397237]
[1644942792074,1.60429,3116.6,3116.5,0.61397237]
[1644942792270,1.66634305,3116.6,3116.5,0.61397237]
[1644942792470,1.66634305,3116.6,3116.5,0.6823167]
[1644942792670,1.66634305,3116.6,3116.5,0.61397237]
[1644942793174,2.95689108,3116.6,3116.5,0.06834433]
[1644942793374,4.25689108,3116.6,3116.5,0.06834433]
[1644942793769,4.25689108,3116.6,3116.1,0.61397237]
[1644942793770,18.72,3116.5,3116.1,0.61397237]
[1644942793971,1.29208539,3116.4,3116.1,0.61397237]
[1644942794271,0.80232,3116.3,3116.1,0.61397237]
[1644942794521,0.80232,3116.4,3116.1,0.61397237]
[1644942794825,0.80232,3116.4,3116.2,0.06836592]
[1644942795022,0.80232,3116.4,3116.2,0.68233829]
[1644942795223,0.80232,3116.4,3116.2,0.61397237]
[1644942795421,1.60463,3116.5,3116.2,0.61397237]
[1644942795622,1.29191417,3116.4,3116.1,0.68233829]
[1644942795922,20.32463,3116.5,3116.2,0.06836592]
[1644942796121,20.32463,3116.5,3116.2,0.61397237]
[1644942796522,0.80227,3116.3,3116.2,0.61397237]
[1644942796925,0.80227,3116.3,3116.2,0.68233829]
[1644942797124,0.80227,3116.3,3116.2,0.61397237]
[1644942797425,0.80227,3116.3,3116.2,0.06836592]
[1644942797823,2.89616504,3116.3,3116.2,0.06836592]
[1644942798023,0.80227,3116.3,3116.2,0.06836592]
[1644942798268,0.80227,3116.3,3116.1,0.68233829]
[1644942798672,0.80235,3116.4,3116.2,0.68233829]
[1644942798870,0.80235,3116.4,3116.3,0.06836592]
[1644942799070,2.40686,3116.5,3116.2,0.61397237]
[1644942799272,1.60463,3116.5,3116.2,0.61397237]
[1644942799473,2.8491,3116.9,3116.3,0.06836592]
[1644942799672,4.6493,3117.0,3116.6,1.41578327]
[1644942799872,4.6493,3117.0,3116.3,0.88601562]
[1644942799873,1.2921119,3116.9,3116.7,0.06836592]
[1644942800078,0.61093883,3117.5,3116.8,0.06836592]
[1644942800272,1.86877926,3117.2,3116.4,0.61375327]
[1644942800475,1.29351721,3117.1,3116.4,1.41589067]
[1644942800672,1.29351721,3117.1,3116.5,0.06836592]
[1644942800673,0.80212,3117.0,3116.5,0.06836592]
[1644942800874,1.29351721,3116.9,3116.5,0.06836592]
[1644942801273,1.29351721,3116.8,3116.5,0.06836592]
[1644942801674,1.29351721,3116.8,3116.4,0.61375327]
[1644942801675,1.29351721,3116.8,3116.6,0.06836592]
[1644942801873,0.94091985,3116.7,3116.3,0.61375327]
[1644942802128,2.09561946,3116.6,3116.3,0.61375327]
[1644942802327,0.80221,3116.6,3116.4,0.0683623]
[1644942802530,0.80221,3116.6,3116.4,0.61375327]
[1644942802731,1.60444,3116.6,3116.4,0.61375327]
[1644942803329,1.60444,3116.6,3116.4,0.68211557]
[1644942803628,0.80221,3116.6,3116.5,0.0683623]
[1644942803830,1.60443,3116.6,3116.4,0.68211557]
[1644942804028,1.60443,3116.6,3116.5,0.0683623]
[1644942804229,1.60443,3116.6,3116.4,0.0683623]
[1644942804529,1.60443,3116.6,3116.5,0.0683623]
[1644942804728,1.60443,3116.6,3116.3,0.61375327]
[1644942804729,0.80221,3116.6,3116.4,0.68211557]
[1644942804929,1.60439,3116.6,3116.4,0.68211557]
[1644942805236,1.60439,3116.6,3116.5,0.0683623]
[1644942805237,0.80221,3116.6,3116.5,0.0683623]
[1644942805873,2.09565658,3116.6,3116.5,0.0683623]
[1644942806273,0.80221,3116.6,3116.4,0.61375327]
[1644942806672,0.80221,3116.6,3116.5,0.68211557]
[1644942807675,0.80218,3116.8,3116.5,4.19266511]
[1644942807878,0.0039287,3117.9,3116.7,0.8176497]
[1644942808071,1.30407088,3117.8,3117.2,0.613665]
[1644942808269,1.30407088,3117.8,3117.5,0.613665]
[1644942808470,0.0039287,3117.9,3117.5,0.6820273]
[1644942808669,0.94375875,3118.0,3117.5,0.6820273]
[1644942808869,0.94375875,3118.0,3117.6,0.0683623]
[1644942809069,0.0039287,3117.9,3117.7,0.0683623]
[1644942809268,0.0039287,3117.9,3117.7,0.3683623]
[1644942809525,0.0039287,3117.9,3117.8,0.0683623]
[1644942810427,1.30226989,3117.9,3117.5,0.0683623]
[1644942810623,0.8057787,3117.9,3117.5,0.0683623]
[1644942810829,0.0039287,3117.9,3117.5,0.0683623]
[1644942811222,5.84805,3118.4,3117.5,0.0683623]
[1644942811223,0.0039287,3118.3,3117.5,0.0683623]
[1644942811427,1.29693085,3118.2,3117.5,1.1701961]
[1644942811628,0.0039287,3118.1,3117.6,0.0683623]
[1644942812023,0.80179,3118.1,3117.6,0.0683623]
[1644942812224,0.0039287,3118.0,3117.6,0.0683623]
[1644942812630,0.0039287,3118.0,3117.7,0.8018082]
[1644942812929,6.12214,3118.6,3117.8,0.8701023]
[1644942812930,0.0039287,3118.3,3117.8,0.8701023]
[1644942813126,1.29593559,3118.2,3117.9,0.0683623]
[1644942813374,1.29593559,3118.1,3118.0,0.0683623]
[1644942814070,1.29593559,3118.4,3117.6,0.0683623]
[1644942814271,0.8057587,3118.0,3117.6,0.0683623]
[1644942814471,0.80183,3118.0,3117.6,0.0683623]
[1644942814675,0.0039287,3117.9,3117.7,0.87014409]
[1644942814974,0.0039287,3117.9,3117.8,0.06833769]
[1644942815576,0.0039287,3118.2,3117.8,0.06833769]
[1644942815775,0.0039287,3118.5,3117.8,0.06833769]
[1644942815978,18.72,3118.3,3117.8,0.06833769]
[1644942816173,2.10181998,3118.2,3117.1,1.2467]
[1644942816374,1.29598128,3118.1,3117.2,0.06834276]
[1644942816574,0.0039287,3118.0,3117.2,0.06834276]
[1644942816772,0.0039287,3118.0,3117.2,0.36834276]
[1644942816773,1.29598128,3117.9,3117.2,0.36834276]
[1644942817019,0.91720827,3117.8,3117.3,0.06834276]
[1644942817221,0.91720827,3117.8,3117.4,0.06834276]
[1644942817421,0.91720827,3117.8,3117.5,0.06834276]
[1644942817623,0.91720827,3117.8,3117.6,0.06834276]
[1644942817820,0.91720827,3117.8,3116.9,0.613665]
[1644942817821,0.91720827,3117.8,3116.9,0.68200776]
[1644942818021,0.80193,3118.1,3117.1,0.80191]
[1644942818022,0.8058587,3118.1,3117.1,0.80191]
[1644942818226,0.8058587,3118.1,3117.5,0.8018522]
[1644942818227,0.8019,3117.7,3117.5,0.8018522]
[1644942818422,0.8019,3117.7,3117.6,0.06834276]
[1644942818820,0.8019,3117.7,3117.2,1.6037044]
[1644942818821,0.8019,3117.7,3117.3,0.06834276]
[1644942819221,1.17739164,3117.6,3117.3,0.06834276]
[1644942819423,1.97932164,3117.6,3117.3,0.06834276]
[1644942820224,0.80193,3117.6,3117.4,0.06834276]
[1644942820424,0.80193,3117.6,3117.5,0.06834276]
[1644942820878,0.80193,3117.6,3117.2,0.06834276]
[1644942821069,0.80193,3117.6,3117.3,0.06834276]
[1644942821268,0.80193,3117.6,3117.0,4.15673481]
[1644942821269,0.80193,3117.6,3117.4,0.06834276]
[1644942821475,0.80193,3117.6,3117.5,0.06834276]
[1644942821670,0.80193,3117.6,3117.3,0.06834276]
[1644942822875,0.80193,3117.6,3117.3,0.36834276]
[1644942823072,0.80193,3117.6,3117.4,0.06834276]
[1644942823477,0.9428084,3117.7,3117.4,0.06834276]
[1644942823675,1.6076287,3118.1,3117.4,0.06834276]
[1644942823876,1.6076287,3118.1,3117.5,0.06834276]
[1644942823877,0.0039287,3118.1,3117.5,0.06834276]
[1644942824075,0.0039287,3118.4,3117.6,0.06834276]
[1644942824274,0.0039287,3118.4,3117.7,0.06834276]
[1644942824519,1.29832769,3118.3,3117.8,0.06834276]
[1644942824719,0.85536915,3118.2,3117.7,0.06834276]
[1644942824923,0.85536915,3118.2,3117.9,0.06834276]
[1644942825122,0.80175,3118.1,3118.0,0.06834276]
[1644942825923,0.85536915,3118.2,3117.9,0.87008186]
[1644942826127,0.85144045,3118.2,3118.0,0.06834276]
[1644942826323,0.85536915,3118.2,3118.0,0.36834276]
[1644942826525,0.85536915,3118.2,3118.1,0.06834276]
[1644942827727,0.85536915,3118.2,3118.1,0.36834276]
[1644942828374,0.76983224,3118.2,3118.1,0.36834276]
[1644942829174,0.76983224,3118.2,3118.1,0.3]
[1644942829572,0.76983224,3118.2,3117.8,1.1017861]
[1644942829775,0.80182,3118.1,3117.9,0.06833536]
[1644942829973,0.80182,3118.1,3118.0,0.06833536]
[1644942830174,0.0039287,3118.0,3117.7,0.3]
[1644942830475,0.0039287,3118.0,3117.8,0.06833554]
[1644942830674,0.8057787,3118.0,3117.8,0.06833554]
[1644942830976,0.8057787,3118.0,3117.9,0.06833554]
[1644942831173,0.0039287,3118.0,3117.5,0.06833554]
[1644942831775,0.0039287,3118.0,3117.7,0.8017983]
[1644942832024,0.8057487,3118.0,3117.8,0.06833554]
[1644942833227,1.6075987,3118.0,3117.8,0.06833554]
[1644942833429,0.8057487,3118.0,3117.8,0.06833554]
[1644942835031,0.80182,3118.0,3117.8,0.06833554]
[1644942836273,0.8057487,3118.1,3117.9,0.06833554]
[1644942836473,0.8057487,3118.1,3118.0,0.06833554]
[1644942836776,0.80185,3118.0,3117.7,0.3]
[1644942836971,0.80185,3118.0,3117.8,0.06833527]
[1644942837374,1.6037,3118.0,3117.8,0.06833527]
[1644942837975,1.6037,3118.0,3117.9,0.06833527]
[1644942838173,0.80185,3118.0,3117.9,0.06833527]
[1644942838374,0.80185,3118.0,3117.4,0.06833527]
[1644942838775,0.80182,3118.1,3117.6,0.8018383]
[1644942838978,1.76983224,3118.2,3117.7,0.06833527]
[1644942839176,0.76983224,3118.2,3117.7,0.06833527]
[1644942839379,0.80178,3118.1,3117.7,0.36833527]
[1644942839623,0.80178,3118.1,3117.8,0.06833527]
[1644942840025,0.80178,3118.1,3117.9,0.06833527]
[1644942840221,0.80178,3118.1,3118.0,0.06833527]